fUSD/lending_fUSD_20260522
["ID","MTS","AMOUNT","RATE_DAILY","PERIOD"]
[422815402,1779456637000,-219.69,0.00011028,2]
[422815410,1779456637000,-2000.0,0.00011491,2]
[422815443,1779456637000,-167.28,0.00011836,2]
[422815409,1779456637000,-164.83,0.00011378,2]
[422815397,1779456637000,-1062.11744017,0.00010999,2]
[422815425,1779456637000,-853.5,0.00011649,2]
[422815428,1779456637000,-500.0,0.00011748,2]
[422815416,1779456637000,-899.0,0.00011501,2]
[422815419,1779456637000,-14125.0,0.00011558,2]
[422815406,1779456637000,-3649.77615176,0.00011346,2]
[422815398,1779456637000,-137.88255983,0.00010999,2]
[422815389,1779456637000,-783.0,0.000108,2]
[422815390,1779456637000,-661.50706924,0.000108,2]
[422815392,1779456637000,-339.37035117,0.00010872,2]
[422815421,1779456637000,-1647.0,0.0001161,2]
[422815400,1779456637000,-79119.92670238,0.00011,2]
[422815432,1779456637000,-500.0,0.00011748,2]
[422815440,1779456637000,-152.0,0.00011802,3]
[422815438,1779456637000,-600.2889482,0.00011748,2]
[422815434,1779456637000,-500.0,0.00011748,2]
[422815418,1779456637000,-2825.0,0.00011521,2]
[422815391,1779456637000,-78.94981,0.00010844,2]
[422815423,1779456637000,-4717.0,0.00011633,2]
[422815404,1779456637000,-1088.97,0.0001133,2]
[422815445,1779456637000,-25793.93665769,0.00011904,2]
[422815388,1779456637000,-303.70314734,0.000108,2]
[422815493,1779456638000,-500.0,0.00011969,2]
[422815489,1779456638000,-335.68540234,0.00011969,2]
[422815485,1779456638000,-585.4317508,0.00011969,2]
[422815488,1779456638000,-500.0,0.00011969,2]
[422815490,1779456638000,-500.0,0.00011969,2]
[422815506,1779456638000,-290.56622121,0.00011969,2]
[422815495,1779456638000,-500.0,0.00011969,2]
[422815497,1779456638000,-500.0,0.00011969,2]
[422815503,1779456638000,-500.0,0.00011969,2]
[422815494,1779456638000,-500.0,0.00011969,2]
[422815492,1779456638000,-500.0,0.00011969,2]
[422815491,1779456638000,-500.0,0.00011969,2]
[422815477,1779456638000,-5755.23914463,0.00011905,2]
[422815486,1779456638000,-291.73995377,0.00011969,2]
[422815487,1779456638000,-500.0,0.00011969,2]
[422815483,1779456638000,-332.48804878,0.00011929,2]
[422815481,1779456638000,-250.0,0.00011929,2]
[422815482,1779456638000,-193.0,0.00011929,2]
[422815480,1779456638000,-552.18824108,0.00011929,2]
[422815476,1779456638000,-7698.34702514,0.00011904,2]
[422815479,1779456638000,-853.5,0.00011927,2]
[422815478,1779456638000,-163.390817,0.00011919,2]
[422815499,1779456638000,-500.0,0.00011969,2]
[422815475,1779456638000,-524.70855744,0.00011904,2]
[422815474,1779456638000,-2524.30426327,0.00011904,2]
[422815484,1779456638000,-250.0,0.00011929,2]
[422815501,1779456638000,-500.0,0.00011969,2]
[422815498,1779456638000,-500.0,0.00011969,2]
[422815522,1779456638000,-9016.5273308,0.00012004,2]
[422815531,1779456638000,-300.92043203,0.00012014,2]
[422815530,1779456638000,-471.75485729,0.00012014,2]
[422815526,1779456638000,-664.71054417,0.00012005,2]
[422815527,1779456638000,-151.0,0.00012014,2]
[422815500,1779456638000,-500.0,0.00011969,2]
[422815528,1779456638000,-151.0,0.00012014,2]
[422815524,1779456638000,-1520.14676685,0.00012005,2]
[422815529,1779456638000,-1102.57776703,0.00012014,2]
[422815523,1779456638000,-4170.9985,0.00012005,2]
[422815525,1779456638000,-303.89308898,0.00012005,2]
[422815514,1779456638000,-27601.71525959,0.0001197,2]
[422815516,1779456638000,-151.0,0.00012002,2]
[422815512,1779456638000,-500.0,0.00011969,2]
[422815521,1779456638000,-18094.06120652,0.00012004,2]
[422815515,1779456638000,-151.0,0.00012002,2]
[422815505,1779456638000,-500.0,0.00011969,2]
[422815496,1779456638000,-500.0,0.00011969,2]
[422815513,1779456638000,-2500.0,0.00011969,2]
[422815504,1779456638000,-500.0,0.00011969,2]
[422815518,1779456638000,-49535.71633865,0.00012004,2]
[422815508,1779456638000,-500.0,0.00011969,2]
[422815502,1779456638000,-500.0,0.00011969,2]
[422815507,1779456638000,-500.0,0.00011969,2]
[422815509,1779456638000,-500.0,0.00011969,2]
[422815511,1779456638000,-500.0,0.00011969,2]
[422815510,1779456638000,-500.0,0.00011969,2]
[422815520,1779456638000,-2035.4737168,0.00012004,2]
[422815550,1779456640000,-150.0,0.00012022,2]
[422815547,1779456640000,-561.0,0.00012022,2]
[422815553,1779456640000,-561.0,0.00012022,2]
[422815546,1779456640000,-150.0,0.00012022,2]
[422815554,1779456640000,-150.0,0.00012022,2]
[422815552,1779456640000,-150.0,0.00012022,2]
[422815543,1779456640000,-561.0,0.00012022,2]
[422815551,1779456640000,-561.0,0.00012022,2]
[422815549,1779456640000,-492.32907058,0.00012022,2]
[422815542,1779456640000,-500.0,0.00012022,2]
[422815539,1779456640000,-161.7000905,0.00012022,2]
[422815541,1779456640000,-561.0,0.00012022,2]
[422815540,1779456640000,-338.2999095,0.00012022,2]
[422815538,1779456640000,-158.34369103,0.00012022,2]
[422815537,1779456640000,-341.65630897,0.00012022,2]
[422815535,1779456640000,-151.0,0.00012014,2]
[422815536,1779456640000,-6015.69630268,0.00012014,2]
[422815548,1779456640000,-561.0,0.00012022,2]
[422815545,1779456640000,-561.0,0.00012022,2]
[422815571,1779456640000,-1113.0,0.00012022,2]
[422815544,1779456640000,-500.0,0.00012022,2]
[422815556,1779456640000,-561.0,0.00012022,2]
[422815578,1779456640000,-1113.0,0.00012022,2]
[422815576,1779456640000,-561.0,0.00012022,2]
[422815577,1779456640000,-500.0,0.00012022,2]
[422815575,1779456640000,-500.0,0.00012022,2]
[422815573,1779456640000,-561.0,0.00012022,2]
[422815570,1779456640000,-561.0,0.00012022,2]
[422815558,1779456640000,-561.0,0.00012022,2]
[422815574,1779456640000,-1113.0,0.00012022,2]
[422815572,1779456640000,-500.0,0.00012022,2]
[422815566,1779456640000,-561.0,0.00012022,2]
[422815564,1779456640000,-500.0,0.00012022,2]
[422815561,1779456640000,-500.0,0.00012022,2]
[422815559,1779456640000,-561.0,0.00012022,2]
[422815562,1779456640000,-561.0,0.00012022,2]
[422815560,1779456640000,-500.0,0.00012022,2]
[422815568,1779456640000,-1113.0,0.00012022,2]
[422815557,1779456640000,-207.76790227,0.00012022,2]
[422815605,1779456641000,-500.0,0.00012022,2]
[422815613,1779456641000,-1113.0,0.00012022,2]
[422815611,1779456641000,-1113.0,0.00012022,2]
[422815621,1779456641000,-33202.0309,0.0001207,2]
[422815604,1779456641000,-1113.0,0.00012022,2]
[422815612,1779456641000,-561.0,0.00012022,2]
[422815610,1779456641000,-561.0,0.00012022,2]
[422815607,1779456641000,-558.89065839,0.00012022,2]
[422815617,1779456641000,-584.23346716,0.00012022,2]
[422815614,1779456641000,-561.0,0.00012022,2]
[422815616,1779456641000,-1113.0,0.00012022,2]
[422815629,1779456641000,-350.77554761,0.00012169,2]
[422815618,1779456641000,-1113.0,0.00012022,2]
[422815620,1779456641000,-2000.0,0.0001207,2]
[422815623,1779456641000,-151.0,0.00012102,2]
[422815632,1779456641000,-500.0,0.00012169,2]
[422815631,1779456641000,-291.13988339,0.00012169,2]
[422815633,1779456641000,-500.0,0.00012169,2]
[422815624,1779456641000,-151.0,0.00012166,2]
[422815606,1779456641000,-1113.0,0.00012022,2]
[422815628,1779456641000,-500.0,0.00012169,2]
[422815625,1779456641000,-151.0,0.00012167,2]
[422815622,1779456641000,-1680.0,0.00012099,2]
[422815619,1779456641000,-255.0,0.00012044,2]
[422815601,1779456641000,-1113.0,0.00012022,2]
[422815594,1779456641000,-500.0,0.00012022,2]
[422815603,1779456641000,-561.0,0.00012022,2]
[422815626,1779456641000,-208.08233963,0.00012167,2]
[422815584,1779456641000,-1113.0,0.00012022,2]
[422815579,1779456641000,-561.0,0.00012022,2]
[422815580,1779456641000,-1113.0,0.00012022,2]
[422815582,1779456641000,-1113.0,0.00012022,2]
[422815581,1779456641000,-500.0,0.00012022,2]
[422815583,1779456641000,-500.0,0.00012022,2]
[422815585,1779456641000,-561.0,0.00012022,2]
[422815587,1779456641000,-1113.0,0.00012022,2]
[422815586,1779456641000,-500.0,0.00012022,2]
[422815592,1779456641000,-500.0,0.00012022,2]
[422815602,1779456641000,-1113.0,0.00012022,2]
[422815595,1779456641000,-561.0,0.00012022,2]
[422815588,1779456641000,-500.0,0.00012022,2]
[422815593,1779456641000,-1113.0,0.00012022,2]
[422815591,1779456641000,-1113.0,0.00012022,2]
[422815596,1779456641000,-1113.0,0.00012022,2]
[422815589,1779456641000,-1113.0,0.00012022,2]
[422815598,1779456641000,-1113.0,0.00012022,2]
[422815608,1779456641000,-561.0,0.00012022,2]
[422815609,1779456641000,-1113.0,0.00012022,2]
[422815597,1779456641000,-500.0,0.00012022,2]
[422815599,1779456641000,-1113.0,0.00012022,2]
[422815600,1779456641000,-353.45757412,0.00012022,2]
[422815590,1779456641000,-500.0,0.00012022,2]
[422815627,1779456641000,-426.84944974,0.00012169,2]
[422815615,1779456641000,-1113.0,0.00012022,2]
[422815635,1779456641000,-500.0,0.00012169,2]
[422815665,1779456641000,-151.0,0.00012336,2]
[422815664,1779456641000,-151.0,0.00012336,2]
[422815666,1779456641000,-151.0,0.00012336,2]
[422815671,1779456641000,-151.0,0.0001237,2]
[422815663,1779456641000,-151.0,0.00012336,2]
[422815669,1779456641000,-293.21670185,0.0001236,2]
[422815667,1779456641000,-117725.50422473,0.00012336,2]
[422815668,1779456641000,-337.40831364,0.00012353,2]
[422815670,1779456641000,-151.0,0.0001237,2]
[422815675,1779456641000,-367266.0667,0.0001237,2]
[422815676,1779456641000,-200.0,0.0001237,2]
[422815662,1779456641000,-151.0,0.00012336,2]
[422815674,1779456641000,-151.0,0.0001237,2]
[422815673,1779456641000,-151.0,0.0001237,2]
[422815683,1779456641000,-641.4212869,0.00012453,2]
[422815679,1779456641000,-151.0,0.00012429,2]
[422815680,1779456641000,-131834.41254455,0.00012429,2]
[422815681,1779456641000,-1942.228865,0.00012436,2]
[422815682,1779456641000,-71572.5730663,0.00012445,2]
[422815677,1779456641000,-151.0,0.00012429,2]
[422815684,1779456641000,-64167.3906589,0.00012453,2]
[422815685,1779456641000,-250023.7802022,0.00012453,2]
[422815686,1779456641000,-151.0,0.00012453,2]
[422815630,1779456641000,-500.0,0.00012169,2]
[422815672,1779456641000,-151.0,0.0001237,2]
[422815660,1779456641000,-151.0,0.00012296,2]
[422815678,1779456641000,-151.0,0.00012429,2]
[422815659,1779456641000,-151.0,0.00012296,2]
[422815634,1779456641000,-500.0,0.00012169,2]
[422815658,1779456641000,-500.0,0.00012296,2]
[422815640,1779456641000,-151.0,0.0001217,2]
[422815638,1779456641000,-162.39879733,0.00012169,2]
[422815637,1779456641000,-500.0,0.00012169,2]
[422815641,1779456641000,-151.0,0.0001217,2]
[422815643,1779456641000,-158.531705,0.0001217,2]
[422815639,1779456641000,-500.0,0.00012169,2]
[422815642,1779456641000,-151.0,0.0001217,2]
[422815644,1779456641000,-151.0,0.0001217,2]
[422815646,1779456641000,-151.0,0.0001217,2]
[422815649,1779456641000,-853.5,0.00012204,2]
[422815648,1779456641000,-352197.9094,0.0001217,2]
[422815636,1779456641000,-500.0,0.00012169,2]
[422815657,1779456641000,-27601.7152595,0.00012296,2]
[422815647,1779456641000,-270.156956,0.0001217,2]
[422815687,1779456641000,-151.0,0.00012453,2]
[422815650,1779456641000,-376.14968789,0.0001221,2]
[422815651,1779456641000,-103954.17452051,0.00012211,2]
[422815652,1779456641000,-151.0,0.00012253,2]
[422815654,1779456641000,-151.0,0.00012253,2]
[422815653,1779456641000,-151.0,0.00012253,2]
[422815656,1779456641000,-585.74960775,0.00012265,2]
[422815661,1779456641000,-5755.23914462,0.00012333,2]
[422815645,1779456641000,-151.0,0.0001217,2]
[422815655,1779456641000,-383.26266564,0.00012253,2]
[422815726,1779456642000,-500.0,0.00012524,2]
[422815727,1779456642000,-500.0,0.00012524,2]
[422815724,1779456642000,-500.0,0.00012524,2]
[422815720,1779456642000,-500.0,0.00012524,2]
[422815714,1779456642000,-507.72,0.00012524,2]
[422815723,1779456642000,-500.0,0.00012524,2]
[422815722,1779456642000,-500.0,0.00012524,2]
[422815718,1779456642000,-500.0,0.00012524,2]
[422815719,1779456642000,-500.0,0.00012524,2]
[422815728,1779456642000,-500.0,0.00012524,2]
[422815721,1779456642000,-500.0,0.00012524,2]
[422815725,1779456642000,-500.0,0.00012524,2]
[422815740,1779456642000,-1089.483,0.0001256,2]
[422815729,1779456642000,-500.0,0.00012524,2]
[422815732,1779456642000,-500.0,0.00012524,2]
[422815735,1779456642000,-500.0,0.00012524,2]
[422815733,1779456642000,-500.0,0.00012524,2]
[422815739,1779456642000,-1089.48299,0.0001256,2]
[422815736,1779456642000,-151.0,0.00012546,2]
[422815737,1779456642000,-1152.7120312,0.00012548,2]
[422815731,1779456642000,-500.0,0.00012524,2]
[422815734,1779456642000,-500.0,0.00012524,2]
[422815738,1779456642000,-170.38,0.00012559,2]
[422815715,1779456642000,-500.0,0.00012524,2]
[422815730,1779456642000,-500.0,0.00012524,2]
[422815713,1779456642000,-500.0,0.00012524,2]
[422815689,1779456642000,-200.0,0.0001247,2]
[422815708,1779456642000,-508.51,0.00012524,2]
[422815742,1779456642000,-201.05813237,0.0001257,2]
[422815688,1779456642000,-151.0,0.00012467,2]
[422815691,1779456642000,-200.0,0.0001247,2]
[422815690,1779456642000,-200.0,0.0001247,2]
[422815692,1779456642000,-500.0,0.00012524,2]
[422815693,1779456642000,-500.0,0.00012524,2]
[422815694,1779456642000,-500.0,0.00012524,2]
[422815696,1779456642000,-500.0,0.00012524,2]
[422815695,1779456642000,-500.0,0.00012524,2]
[422815697,1779456642000,-500.0,0.00012524,2]
[422815698,1779456642000,-500.0,0.00012524,2]
[422815699,1779456642000,-500.0,0.00012524,2]
[422815700,1779456642000,-500.0,0.00012524,2]
[422815702,1779456642000,-500.0,0.00012524,2]
[422815701,1779456642000,-500.0,0.00012524,2]
[422815703,1779456642000,-500.0,0.00012524,2]
[422815704,1779456642000,-500.0,0.00012524,2]
[422815706,1779456642000,-500.0,0.00012524,2]
[422815717,1779456642000,-500.0,0.00012524,2]
[422815716,1779456642000,-500.0,0.00012524,2]
[422815709,1779456642000,-500.0,0.00012524,2]
[422815705,1779456642000,-500.0,0.00012524,2]
[422815711,1779456642000,-500.0,0.00012524,2]
[422815712,1779456642000,-500.0,0.00012524,2]
[422815707,1779456642000,-500.0,0.00012524,2]
[422815710,1779456642000,-500.0,0.00012524,2]
[422815743,1779456642000,-766.3925524,0.0001257,2]
[422815752,1779456642000,-758.48683559,0.0001269,2]
[422815746,1779456642000,-200.0,0.00012595,2]
[422815778,1779456642000,-200.0,0.00012976,2]
[422815780,1779456642000,-1984.0,0.00013,2]
[422815781,1779456642000,-5676.87168913,0.00013,2]
[422815782,1779456642000,-3781.18625224,0.00013,15]
[422815786,1779456642000,-4595.55094584,0.00013092,2]
[422815784,1779456642000,-5414.34385621,0.0001305,2]
[422815783,1779456642000,-166.67,0.00013022,2]
[422815785,1779456642000,-160.0,0.00013078,2]
[422815788,1779456642000,-162.46,0.00013099,2]
[422815797,1779456642000,-151.0,0.00013151,2]
[422815796,1779456642000,-151.0,0.00013151,2]
[422815779,1779456642000,-200.0,0.00012976,2]
[422815787,1779456642000,-10247.81203377,0.00013092,2]
[422815790,1779456642000,-500.0,0.00013118,2]
[422815792,1779456642000,-245.041,0.00013124,2]
[422815798,1779456642000,-151.0,0.00013151,2]
[422815748,1779456642000,-218.01068577,0.00012627,2]
[422815793,1779456642000,-383.26266564,0.00013135,2]
[422815795,1779456642000,-151.0,0.00013151,2]
[422815794,1779456642000,-350.0,0.00013136,2]
[422815800,1779456642000,-151.0,0.00013151,2]
[422815799,1779456642000,-151.0,0.00013151,2]
[422815801,1779456642000,-151.0,0.00013151,2]
[422815803,1779456642000,-151.0,0.00013151,2]
[422815789,1779456642000,-350.0,0.00013114,2]
[422815776,1779456642000,-27601.7152595,0.00012947,2]
[422815791,1779456642000,-4296.555,0.00013124,2]
[422815772,1779456642000,-178.96984945,0.00012925,2]
[422815774,1779456642000,-2000.0,0.00012928,2]
[422815741,1779456642000,-500.0,0.0001257,2]
[422815744,1779456642000,-200.0,0.00012595,2]
[422815745,1779456642000,-200.0,0.00012595,2]
[422815747,1779456642000,-27601.7152595,0.00012621,2]
[422815750,1779456642000,-522.168833,0.00012688,2]
[422815753,1779456642000,-1089.483,0.0001269,2]
[422815751,1779456642000,-1000.0,0.0001269,2]
[422815756,1779456642000,-1089.483,0.0001269,2]
[422815760,1779456642000,-200.0,0.00012721,2]
[422815754,1779456642000,-1089.483,0.0001269,2]
[422815761,1779456642000,-200.0,0.00012721,2]
[422815749,1779456642000,-1732.26663,0.00012656,2]
[422815755,1779456642000,-1089.483,0.0001269,2]
[422815767,1779456642000,-200.0,0.00012848,2]
[422815759,1779456642000,-383.26266564,0.00012694,2]
[422815768,1779456642000,-200.0,0.00012848,2]
[422815777,1779456642000,-152.0,0.00012961,4]
[422815775,1779456642000,-672.52,0.00012928,2]
[422815770,1779456642000,-215.27762834,0.00012898,2]
[422815765,1779456642000,-5755.23914462,0.00012761,2]
[422815766,1779456642000,-500.0,0.00012844,2]
[422815763,1779456642000,-200.0,0.00012721,2]
[422815758,1779456642000,-386.0,0.00012692,5]
[422815757,1779456642000,-387.0,0.00012692,5]
[422815769,1779456642000,-275.36,0.00012877,2]
[422815833,1779456643000,-500.0,0.00013392,2]
[422815841,1779456643000,-150.0,0.00013488,2]
[422815835,1779456643000,-152.0,0.00013414,7]
[422815834,1779456643000,-1000.0,0.000134,2]
[422815836,1779456643000,-152.0,0.00013414,7]
[422815837,1779456643000,-150.0,0.00013488,2]
[422815848,1779456643000,-150.0,0.00013563,2]
[422815839,1779456643000,-150.0,0.00013488,2]
[422815845,1779456643000,-150.0,0.00013488,2]
[422815838,1779456643000,-150.0,0.00013488,2]
[422815842,1779456643000,-150.0,0.00013488,2]
[422815843,1779456643000,-150.0,0.00013488,2]
[422815844,1779456643000,-150.0,0.00013488,2]
[422815846,1779456643000,-327.97,0.00013518,2]
[422815847,1779456643000,-152.0,0.00013549,7]
[422815832,1779456643000,-350.0,0.0001332,2]
[422815840,1779456643000,-150.0,0.00013488,2]
[422815818,1779456643000,-315.0,0.000132,2]
[422815812,1779456643000,-151.0,0.00013151,2]
[422815823,1779456643000,-152.0,0.00013214,4]
[422815806,1779456643000,-151.0,0.00013151,2]
[422815811,1779456643000,-151.0,0.00013151,2]
[422815807,1779456643000,-151.0,0.00013151,2]
[422815808,1779456643000,-151.0,0.00013151,2]
[422815809,1779456643000,-151.0,0.00013151,2]
[422815810,1779456643000,-151.0,0.00013151,2]
[422815805,1779456643000,-151.0,0.00013151,2]
[422815831,1779456643000,-350.0,0.00013317,2]
[422815804,1779456643000,-151.0,0.00013151,2]
[422815825,1779456643000,-350.0,0.00013249,2]
[422815813,1779456643000,-151.0,0.00013151,2]
[422815828,1779456643000,-27601.7152595,0.00013272,2]
[422815815,1779456643000,-433.0,0.00013188,2]
[422815820,1779456643000,-200.0,0.000132,2]
[422815816,1779456643000,-5755.23914462,0.00013189,2]
[422815830,1779456643000,-2351.0,0.00013309,2]
[422815814,1779456643000,-224.525448,0.00013151,2]
[422815852,1779456643000,-10000.0,0.00013598,2]
[422815862,1779456643000,-500.0,0.00013698,2]
[422815849,1779456643000,-163.0,0.0001357,2]
[422815875,1779456643000,-500.0,0.00013698,2]
[422815874,1779456643000,-500.0,0.00013698,2]
[422815872,1779456643000,-500.0,0.00013698,2]
[422815876,1779456643000,-500.0,0.00013698,2]
[422815878,1779456643000,-500.0,0.00013698,2]
[422815879,1779456643000,-500.0,0.00013698,2]
[422815877,1779456643000,-264.34442925,0.00013698,2]
[422815873,1779456643000,-617.3,0.00013698,2]
[422815881,1779456643000,-500.0,0.00013698,2]
[422815883,1779456643000,-500.0,0.00013698,2]
[422815885,1779456643000,-500.0,0.00013698,2]
[422815884,1779456643000,-500.0,0.00013698,2]
[422815886,1779456643000,-500.0,0.00013698,2]
[422815887,1779456643000,-500.0,0.00013698,2]
[422815888,1779456643000,-500.0,0.00013698,2]
[422815851,1779456643000,-27601.7152595,0.00013598,2]
[422815880,1779456643000,-500.0,0.00013698,2]
[422815871,1779456643000,-500.0,0.00013698,2]
[422815882,1779456643000,-500.0,0.00013698,2]
[422815870,1779456643000,-459.82,0.00013698,2]
[422815868,1779456643000,-500.0,0.00013698,2]
[422815850,1779456643000,-383.26266564,0.00013577,2]
[422815853,1779456643000,-350.0,0.00013615,2]
[422815854,1779456643000,-5755.23914462,0.00013616,2]
[422815856,1779456643000,-150.0,0.00013638,2]
[422815857,1779456643000,-500.0,0.00013666,2]
[422815858,1779456643000,-300.0,0.00013697,2]
[422815859,1779456643000,-300.0,0.00013697,2]
[422815855,1779456643000,-337.40831364,0.00013627,2]
[422815860,1779456643000,-500.0,0.00013698,2]
[422815863,1779456643000,-500.0,0.00013698,2]
[422815865,1779456643000,-500.0,0.00013698,2]
[422815864,1779456643000,-239.59682966,0.00013698,2]
[422815867,1779456643000,-500.0,0.00013698,2]
[422815866,1779456643000,-500.0,0.00013698,2]
[422815861,1779456643000,-505.64447127,0.00013698,2]
[422815869,1779456643000,-500.0,0.00013698,2]
[422815914,1779456644000,-523.75497223,0.00013698,2]
[422815924,1779456644000,-500.0,0.00013698,2]
[422815923,1779456644000,-500.0,0.00013698,2]
[422815922,1779456644000,-500.0,0.00013698,2]
[422815920,1779456644000,-500.0,0.00013698,2]
[422815919,1779456644000,-500.0,0.00013698,2]
[422815918,1779456644000,-500.0,0.00013698,2]
[422815917,1779456644000,-500.0,0.00013698,2]
[422815934,1779456644000,-547.1,0.00013698,2]
[422815921,1779456644000,-512.41423198,0.00013698,2]
[422815925,1779456644000,-508.99758767,0.00013698,2]
[422815946,1779456644000,-500.0,0.00013698,2]
[422815926,1779456644000,-500.0,0.00013698,2]
[422815930,1779456644000,-500.0,0.00013698,2]
[422815929,1779456644000,-538.05787571,0.00013698,2]
[422815932,1779456644000,-547.1,0.00013698,2]
[422815931,1779456644000,-547.1,0.00013698,2]
[422815933,1779456644000,-547.1,0.00013698,2]
[422815936,1779456644000,-547.1,0.00013698,2]
[422815935,1779456644000,-547.1,0.00013698,2]
[422815939,1779456644000,-547.1,0.00013698,2]
[422815913,1779456644000,-500.0,0.00013698,2]
[422815927,1779456644000,-500.0,0.00013698,2]
[422815915,1779456644000,-219.45540704,0.00013698,2]
[422815896,1779456644000,-500.0,0.00013698,2]
[422815912,1779456644000,-500.0,0.00013698,2]
[422815889,1779456644000,-500.0,0.00013698,2]
[422815891,1779456644000,-500.0,0.00013698,2]
[422815892,1779456644000,-476.99893723,0.00013698,2]
[422815894,1779456644000,-500.0,0.00013698,2]
[422815890,1779456644000,-500.0,0.00013698,2]
[422815893,1779456644000,-500.0,0.00013698,2]
[422815938,1779456644000,-547.1,0.00013698,2]
[422815895,1779456644000,-500.0,0.00013698,2]
[422815901,1779456644000,-500.0,0.00013698,2]
[422815898,1779456644000,-500.0,0.00013698,2]
[422815899,1779456644000,-500.0,0.00013698,2]
[422815897,1779456644000,-527.2240957,0.00013698,2]
[422815900,1779456644000,-217.28622726,0.00013698,2]
[422815903,1779456644000,-500.0,0.00013698,2]
[422815902,1779456644000,-575.12416535,0.00013698,2]
[422815904,1779456644000,-500.0,0.00013698,2]
[422815907,1779456644000,-500.0,0.00013698,2]
[422815908,1779456644000,-500.0,0.00013698,2]
[422815906,1779456644000,-500.0,0.00013698,2]
[422815909,1779456644000,-500.0,0.00013698,2]
[422815911,1779456644000,-500.0,0.00013698,2]
[422815910,1779456644000,-500.0,0.00013698,2]
[422815905,1779456644000,-500.0,0.00013698,2]
[422815916,1779456644000,-500.0,0.00013698,2]
[422815937,1779456644000,-547.1,0.00013698,2]
[422815928,1779456644000,-510.74292638,0.00013698,2]
[422815940,1779456644000,-547.1,0.00013698,2]
[422815972,1779456644000,-904.721416,0.00013699,2]
[422815971,1779456644000,-904.721416,0.00013699,2]
[422815970,1779456644000,-904.721416,0.00013699,2]
[422815977,1779456644000,-904.721416,0.00013699,2]
[422815976,1779456644000,-904.721416,0.00013699,2]
[422815978,1779456644000,-904.721416,0.00013699,2]
[422815973,1779456644000,-904.721416,0.00013699,2]
[422815974,1779456644000,-904.721416,0.00013699,2]
[422815975,1779456644000,-904.721416,0.00013699,2]
[422815980,1779456644000,-904.721416,0.00013699,2]
[422815985,1779456644000,-2500.0,0.00013699,2]
[422815987,1779456644000,-151.0,0.00013699,2]
[422815979,1779456644000,-904.721416,0.00013699,2]
[422815990,1779456644000,-151.0,0.00013699,2]
[422815981,1779456644000,-904.721416,0.00013699,2]
[422815988,1779456644000,-151.0,0.00013699,2]
[422815989,1779456644000,-151.0,0.00013699,2]
[422815983,1779456644000,-904.721416,0.00013699,2]
[422815982,1779456644000,-904.721416,0.00013699,2]
[422815984,1779456644000,-904.721409,0.00013699,2]
[422815991,1779456644000,-151.0,0.00013699,2]
[422815942,1779456644000,-500.0,0.00013698,2]
[422815992,1779456644000,-151.0,0.00013699,2]
[422815969,1779456644000,-904.721416,0.00013699,2]
[422815961,1779456644000,-500.0,0.00013698,2]
[422815986,1779456644000,-200.0,0.00013699,2]
[422815959,1779456644000,-500.0,0.00013698,2]
[422815941,1779456644000,-500.0,0.00013698,2]
[422815968,1779456644000,-904.721416,0.00013699,2]